bitfinex-derivatives/quotes_SOLF0:USTF0_20241218
["timestamp","ask_amount","ask_price","bid_price","bid_amount"]
[1734540621193,2.32,216.5,216.41,11.27454163]
[1734540621593,2.32,216.5,216.38,11.27454163]
[1734540622396,2.3105,216.46,216.41,2.3109]
[1734540622602,2.32,216.5,216.41,11.27454163]
[1734540623106,2.3104,216.47,216.42,2.3108]
[1734540623306,2.3104,216.47,216.41,11.27454163]
[1734540623697,2.3104,216.47,216.42,2.3108]
[1734540624109,2.3101,216.49,216.41,11.27454163]
[1734540624304,2.3101,216.49,216.45,2.3105]
[1734540625100,4.63,216.5,216.46,2.3103]
[1734540626305,4.63,216.5,216.47,7.21607606]
[1734540627601,2.3099,216.52,216.47,9.52637606]
[1734540627800,2.3099,216.52,216.49,7.21607606]
[1734540628207,2.3097,216.54,216.51,7.21607606]
[1734540629305,2.3097,216.53,216.49,7.21607606]
[1734540630308,2.3097,216.53,216.49,9.52607606]
[1734540630706,7.95706229,216.56,216.49,7.21607606]
[1734540631612,2.3095,216.55,216.5,2.3099]
[1734540632508,6.1253,216.63,216.37,6.39630684]
[1734540632509,1.508,216.63,216.51,7.21607606]
[1734540632712,7.21607606,216.59,216.51,7.21607606]
[1734540633111,5.43904682,216.58,216.51,7.21607606]
[1734540633512,2.3093,216.57,216.52,2.3098]
[1734540633813,7.21607606,216.57,216.5,7.21607606]
[1734540634015,7.21607606,216.59,216.52,7.21607606]
[1734540634217,2.3093,216.57,216.54,7.21607606]
[1734540634412,2.32,216.6,216.54,7.21607606]
[1734540635210,5.66599783,216.61,216.54,7.21607606]
[1734540635415,7.98599783,216.61,216.54,7.21607606]
[1734540635614,7.98599783,216.61,216.47,4.5452]
[1734540635615,7.21607606,216.6,216.47,4.5452]
[1734540635914,7.21607606,216.58,216.5,7.21607606]
[1734540636214,2.3094,216.56,216.52,2.3098]
[1734540639017,2.3092,216.58,216.52,7.21607606]
[1734540639309,7.98599783,216.61,216.54,7.21607606]
[1734540639915,7.21607606,216.6,216.47,6.8652]
[1734540640116,2.3095,216.55,216.51,9.52597606]
[1734540640614,7.21607606,216.58,216.51,7.21607606]
[1734540640916,2.3095,216.55,216.52,2.3098]
[1734540641606,7.21607606,216.58,216.51,7.21607606]
[1734540641806,2.3096,216.54,216.49,7.21607606]
[1734540642206,2.3097,216.53,216.49,7.21607606]
[1734540642612,7.21607606,216.54,216.41,2.32]
[1734540642805,7.21607606,216.52,216.44,7.21607606]
[1734540643010,7.21607606,216.5,216.42,7.21607606]
[1734540643413,2.3105,216.46,216.42,9.52687606]
[1734540645212,2.3105,216.46,216.44,7.21607606]
[1734540646316,3.8771,216.54,216.44,7.21607606]
[1734540646517,2.32,216.54,216.49,7.21607606]
[1734540646718,2.32,216.54,216.51,7.21607606]
[1734540647015,4.6296,216.54,216.51,7.21607606]
[1734540647317,2.3096,216.54,216.51,7.21607606]
[1734540648117,2.32,216.55,216.51,7.21607606]
[1734540648319,4.562,216.63,216.53,7.21607606]
[1734540648320,5.53312746,216.6,216.53,7.21607606]
[1734540648520,5.53312746,216.6,216.56,7.21607606]
[1734540649322,2.309,216.59,216.56,7.21607606]
[1734540649520,2.309,216.59,216.54,7.21607606]
[1734540649819,2.309,216.59,216.54,9.52567606]
[1734540650814,5.53312746,216.6,216.54,7.21607606]
[1734540651018,7.84202746,216.6,216.55,2.3094]
[1734540651220,2.32,216.61,216.56,7.21607606]
[1734540651621,4.6288,216.61,216.56,9.52537606]
[1734540651822,4.6288,216.61,216.58,7.21607606]
[1734540653222,2.32,216.61,216.58,7.21607606]
[1734540653632,2.32,216.61,216.59,2.309]
[1734540653826,2.32,216.61,216.58,7.21607606]
[1734540655229,2.32,216.61,216.58,9.52517606]
[1734540655531,2.32,216.61,216.58,7.21607606]
[1734540659433,2.32,216.61,216.58,9.52517606]
[1734540660528,2.32,216.61,216.58,2.3091]
[1734540661242,2.32,216.61,216.58,9.52517606]
[1734540662736,7.21607606,216.66,216.59,2.3089]
[1734540662936,2.32,216.65,216.6,7.21607606]
[1734540663345,2.3086,216.63,216.6,7.21607606]
[1734540664944,7.21607606,216.66,216.6,7.21607606]
[1734540665145,4.6285,216.65,216.61,2.3088]
[1734540665345,2.32,216.65,216.61,2.3088]
[1734540666746,2.32,216.65,216.62,2.3087]
[1734540667446,2.32,216.65,216.62,9.52477606]
[1734540667940,2.3083,216.66,216.62,9.52477606]
[1734540671648,9.39886765,216.68,216.62,7.21607606]
[1734540671849,7.21607606,216.63,216.56,7.21607606]
[1734540672047,7.21607606,216.59,216.49,4.5982]
[1734540672241,7.21607606,216.59,216.53,7.21607606]
[1734540672448,2.3094,216.56,216.53,7.21607606]
[1734540672750,7.21607606,216.61,216.53,7.21607606]
[1734540672950,2.3092,216.58,216.53,9.52567606]
[1734540676648,1.4634,216.7,216.57,7.21607606]
[1734540676947,15.45189262,216.72,216.63,7.21607606]
[1734540677151,2.3083,216.66,216.61,7.21607606]
[1734540678152,2.3083,216.66,216.61,9.52487606]
[1734540678858,2.3083,216.66,216.63,7.21607606]
[1734540679250,2.3083,216.66,216.61,7.21607606]
[1734540680754,2.3085,216.65,216.61,7.21607606]
[1734540680956,7.21607606,216.64,216.52,2.32]
[1734540681250,7.21607606,216.62,216.55,7.21607606]
[1734540681453,2.309,216.6,216.55,7.21607606]
[1734540681856,2.3092,216.58,216.53,7.21607606]
[1734540682049,7.21607606,216.6,216.53,7.21607606]
[1734540682353,7.21607606,216.6,216.51,7.21607606]
[1734540682556,7.21607606,216.6,216.51,9.52597606]
[1734540683055,2.3094,216.56,216.51,9.52597606]
[1734540683252,2.32,216.56,216.51,9.52597606]
[1734540683558,2.32,216.56,216.51,7.21607606]
[1734540683747,9.53607606,216.56,216.42,3.0356]
[1734540684055,7.21607606,216.54,216.47,7.21607606]
[1734540684254,2.3099,216.52,216.47,7.21607606]
[1734540684955,2.3099,216.52,216.47,9.52637606]
[1734540685257,2.3097,216.53,216.49,7.21607606]
[1734540685553,2.32,216.56,216.49,7.21607606]
[1734540685755,2.32,216.56,216.51,7.21607606]
[1734540685956,2.32,216.56,216.53,7.21607606]
[1734540686654,4.6294,216.56,216.53,7.21607606]
[1734540686856,2.32,216.56,216.53,7.21607606]
[1734540688056,2.32,216.56,216.51,9.52587606]
[1734540688357,4.6294,216.56,216.51,9.52587606]
[1734540688555,2.32,216.56,216.53,7.21607606]
[1734540689252,2.32,216.56,216.53,9.52577606]
[1734540690557,2.32,216.56,216.54,2.3096]
[1734540690860,7.21607606,216.62,216.53,7.21607606]
[1734540691060,2.32,216.61,216.57,7.21607606]
[1734540691262,2.32,216.63,216.59,7.21607606]
[1734540692466,2.3086,216.63,216.59,7.21607606]
[1734540692761,4.6286,216.63,216.59,7.21607606]
[1734540693361,4.6286,216.63,216.58,2.309]
[1734540696767,9.53607606,216.63,216.55,7.21607606]
[1734540696966,9.53607606,216.63,216.55,9.52547606]
[1734540697190,11.02120697,216.62,216.55,7.21607606]
[1734540697704,9.53607606,216.63,216.55,7.21607606]
[1734540699083,9.53607606,216.63,216.55,9.52557606]
[1734540699578,2.309,216.6,216.55,9.52557606]
[1734540699965,5.50847106,216.64,216.59,2.309]
[1734540700163,2.32,216.63,216.59,7.21607606]
[1734540700764,7.21607606,216.68,216.61,7.21607606]
[1734540700969,5.67653354,216.69,216.63,7.21607606]
[1734540701161,2.32,216.7,216.65,9.52447606]
[1734540701366,2.32,216.7,216.65,7.21607606]
[1734540701867,2.32,216.7,216.66,2.3082]
[1734540702665,7.21607606,216.72,216.66,2.3082]
[1734540702963,2.32,216.73,216.68,2.308]
[1734540703371,2.3077,216.72,216.67,7.21607606]
[1734540704166,2.32,216.73,216.69,7.21607606]
[1734540704362,2.3077,216.72,216.69,7.21607606]
[1734540704567,2.32,216.74,216.69,7.21607606]
[1734540704798,2.32,216.74,216.7,2.3078]
[1734540707172,4.6274,216.74,216.7,2.3078]
[1734540707575,2.32,216.74,216.7,2.3078]
[1734540708268,2.32,216.74,216.71,7.21607606]
[1734540708872,10.96108499,216.77,216.62,2.32]
[1734540709071,2.32,216.8,216.76,7.21607606]
[1734540709265,7.80973506,216.81,216.76,7.21607606]
[1734540709667,18.77057794,216.81,216.76,7.21607606]
[1734540709876,10.96084288,216.8,216.76,7.21607606]
[1734540710180,7.80973506,216.81,216.76,7.21607606]
[1734540710368,2.3068,216.8,216.75,7.21607606]
[1734540711011,13.25801845,216.8,216.75,7.21607606]
[1734540711372,2.3068,216.8,216.77,7.21607606]
[1734540711674,2.3068,216.8,216.76,7.21607606]
[1734540712078,10.11643506,216.81,216.76,7.21607606]
[1734540712374,7.80973506,216.81,216.76,7.21607606]
[1734540713674,2.3068,216.8,216.76,7.21607606]
[1734540714273,2.3069,216.79,216.74,9.52347606]
[1734540714666,2.3069,216.79,216.76,7.21607606]
[1734540715073,2.3068,216.8,216.76,7.21607606]
[1734540715278,3.1279,216.87,216.78,7.21607606]
[1734540715471,2.32,216.86,216.82,7.21607606]
[1734540715675,2.32,216.86,216.82,9.52257606]
[1734540715978,2.32,216.87,216.82,7.21607606]
[1734540716197,5.88889,216.91,216.84,7.21607606]
[1734540716475,2.32,216.9,216.86,7.21607606]
[1734540717479,4.6258,216.9,216.86,7.21607606]
[1734540717976,2.32,216.9,216.85,2.3063]
[1734540718174,5.88889,216.91,216.86,11.23529347]
[1734540719374,5.88889,216.91,216.83,11.23529347]
[1734540719375,2.32,216.97,216.89,11.23529347]
[1734540720572,4.6251,216.97,216.91,2.3056]
[1734540720871,2.32,216.97,216.89,11.23529347]
[1734540721179,2.32,216.97,216.93,2.3054]
[1734540721580,4.5351,217.02,216.94,2.3053]
[1734540721876,7.9585479,216.99,216.94,2.3053]
[1734540722076,7.9585479,216.99,216.92,11.23529347]
[1734540722277,2.3049,216.98,216.93,2.3054]
[1734540722479,13.19211032,216.98,216.93,2.3054]
[1734540722677,2.3049,216.98,216.93,2.3054]
[1734540723772,13.18036672,216.98,216.93,2.3054]
[1734540724181,2.3049,216.98,216.93,2.3054]
[1734540726483,7.9585479,216.99,216.94,2.3053]
[1734540727583,7.9433479,216.99,216.94,2.3053]
[1734540727883,10.2633479,216.99,216.94,2.3053]
[1734540728884,7.9585479,216.99,216.84,5.42911677]
[1734540729082,19.19384137,216.99,216.85,11.23529347]
[1734540729686,2.3057,216.91,216.86,2.3061]
[1734540729985,2.32,216.91,216.82,11.23529347]
[1734540732286,2.32,216.91,216.85,11.23529347]
[1734540732684,2.32,216.91,216.87,2.306]
[1734540732983,2.32,216.91,216.88,11.23529347]
[1734540733483,2.32,216.91,216.89,2.3058]
[1734540733682,2.32,216.91,216.88,11.23529347]
[1734540733886,2.32,216.96,216.88,11.23529347]
[1734540734191,2.32,216.96,216.91,11.23529347]
[1734540734882,2.32,216.97,216.94,11.23529347]
[1734540735688,2.3048,217.0,216.94,11.23529347]
[1734540735885,7.91437282,217.03,216.97,2.305]
[1734540736189,2.32,217.02,216.97,2.305]
[1734540736889,2.32,217.02,216.96,2.3051]
[1734540736890,4.6246,217.02,216.96,2.3051]
[1734540738090,2.32,217.02,216.94,11.23529347]
[1734540738292,2.32,217.02,216.91,11.23529347]
[1734540739292,2.305,216.97,216.91,11.23529347]
[1734540739493,4.625,216.97,216.91,11.23529347]
[1734540740591,2.3051,216.96,216.91,13.54089347]
[1734540740788,2.32,216.97,216.91,11.23529347]
[1734540741090,2.32,216.97,216.88,11.23529347]
[1734540742492,2.3054,216.94,216.89,2.3058]
[1734540742694,2.32,216.97,216.88,11.23529347]
[1734540743598,2.32,216.97,216.85,2.32]
[1734540743599,2.32,216.97,216.94,2.3053]
[1734540743990,2.32,216.97,216.91,11.23529347]
[1734540744191,2.32,216.97,216.88,11.23529347]
[1734540744394,2.32,216.97,216.91,11.23529347]
[1734540744995,4.625,216.97,216.92,2.3055]
[1734540745203,5.60987282,217.03,216.94,11.23529347]
[1734540745497,4.6244,217.03,216.97,2.305]
[1734540745689,2.32,217.03,216.97,2.305]
[1734540745893,5.59931787,217.04,216.97,2.305]
[1734540746198,2.3045,217.02,216.94,11.23529347]
[1734540746899,10.89393029,217.02,216.97,11.23529347]
[1734540747193,0.76868,217.08,216.99,2.3048]
[1734540747397,2.3,217.07,216.97,11.23529347]
[1734540747792,2.3042,217.05,217.0,2.3046]
[1734540748198,2.3,217.06,217.0,11.23529347]
[1734540748397,2.3041,217.06,217.01,2.3045]
[1734540749195,2.304,217.07,217.0,11.23529347]
[1734540749495,0.76868,217.08,217.03,11.23529347]
[1734540749798,11.65129004,217.08,217.03,11.23529347]
[1734540749994,0.76868,217.08,217.03,11.23529347]
[1734540750390,0.76868,217.08,217.05,2.304]
[1734540751596,0.76868,217.08,217.04,2.3042]
[1734540752594,3.07248,217.08,217.04,2.3042]
[1734540753705,0.76868,217.08,217.03,11.23529347]
[1734540754912,0.76868,217.08,217.0,11.23529347]
[1734540755707,2.3041,217.06,217.01,2.3046]
[1734540755911,4.6041,217.06,217.01,2.3046]
[1734540756108,0.76868,217.08,217.0,11.23529347]
[1734540756304,0.76868,217.08,216.97,2.3]
[1734540756505,0.76868,217.08,217.03,11.23529347]
[1734540757109,3.07248,217.08,217.03,13.53959347]
[1734540758110,0.76868,217.08,217.03,11.23529347]
[1734540758915,3.07258,217.08,217.03,13.53959347]
[1734540759309,3.07258,217.08,217.03,11.23529347]
[1734540760413,13.97758453,217.08,217.04,2.3042]
[1734540760613,10.90500453,217.07,217.04,2.3042]
[1734540760833,10.90500453,217.06,217.04,2.3042]
[1734540761014,3.07258,217.08,217.04,2.3042]
[1734540761613,13.97758453,217.08,217.04,2.3042]
[1734540761813,2.304,217.06,217.03,11.23529347]
[1734540762012,13.20900453,217.06,217.03,11.23529347]
[1734540762219,10.90500453,217.05,217.03,11.23529347]
[1734540762422,10.90500453,217.04,217.03,11.23529347]
[1734540762620,2.304,217.06,217.03,11.23529347]
[1734540764823,2.304,217.07,217.03,13.53959347]
[1734540765120,13.20900453,217.07,217.03,13.53959347]
[1734540765320,10.90500453,217.06,217.03,13.53959347]
[1734540765522,2.304,217.07,217.03,13.53959347]
[1734540765523,10.90500453,217.05,217.03,13.53959347]
[1734540765723,0.76868,217.08,217.03,11.23529347]
[1734540767020,2.304,217.07,217.03,11.23529347]
[1734540767215,0.76868,217.08,217.03,11.23529347]
[1734540768426,2.3041,217.06,217.03,11.23529347]
[1734540768619,0.76868,217.08,217.0,11.23529347]
[1734540769125,2.3044,217.03,216.99,2.3048]
[1734540771329,2.3044,217.03,216.95,2.3]
[1734540771330,3.06868,217.08,217.0,11.23529347]
[1734540771518,3.06868,217.08,217.03,11.23529347]
[1734540771922,5.37258,217.08,217.03,13.53969347]
[1734540772122,3.06868,217.08,217.03,11.23529347]
[1734540772727,2.304,217.07,217.03,11.23529347]
[1734540774532,2.304,217.06,217.03,11.23529347]
[1734540774932,0.76868,217.08,217.03,11.23529347]
[1734540776027,2.3039,217.07,217.03,13.53959347]
[1734540776231,0.76868,217.08,217.03,13.53959347]
[1734540777024,3.07258,217.08,217.03,13.53959347]
[1734540778030,0.76868,217.08,217.03,11.23529347]
[1734540778536,0.76868,217.08,217.0,11.23529347]
[1734540779232,2.3041,217.06,217.0,13.53989347]
[1734540779428,0.76868,217.08,217.0,13.53989347]
[1734540779826,2.3043,217.04,217.0,11.23529347]
[1734540780130,2.3,217.05,216.94,11.23529347]
[1734540780336,2.3045,217.02,216.94,11.23529347]
[1734540780537,2.3,217.05,216.95,2.3052]
[1734540781031,2.3,217.05,216.94,11.23529347]
[1734540781032,2.305,216.97,216.94,11.23529347]
[1734540781334,2.3,217.0,216.94,11.23529347]
[1734540781935,4.6048,217.0,216.94,11.23529347]
[1734540782135,2.3,217.0,216.94,11.23529347]
[1734540782330,4.6048,217.0,216.95,2.3052]
[1734540783532,4.6048,217.0,216.91,11.23529347]
[1734540783533,2.3,217.0,216.91,11.23529347]
[1734540783732,2.3,217.0,216.89,2.3058]
[1734540783733,2.3,217.0,216.89,13.54109347]
[1734540784444,2.3055,216.93,216.89,11.23529347]
[1734540784635,2.3,216.95,216.89,11.23529347]
[1734540785529,2.3,216.95,216.86,14.33389347]
[1734540785735,2.3,216.95,216.86,11.23529347]
[1734540786039,2.3059,216.89,216.83,13.54169347]
[1734540786240,2.3,216.95,216.83,11.23529347]
[1734540786630,2.3,216.95,216.83,13.54179347]
[1734540786837,2.3,216.95,216.83,11.23529347]
[1734540787037,13.27913433,216.95,216.83,11.23529347]
[1734540787341,10.97913433,216.94,216.83,11.23529347]
[1734540787642,10.97913433,216.94,216.8,11.23529347]
[1734540788141,10.97913433,216.94,216.8,13.54199347]
[1734540788337,10.97913433,216.94,216.8,11.23529347]
[1734540788537,2.3062,216.86,216.81,2.3067]
[1734540790039,2.3062,216.86,216.8,13.54209347]
[1734540790433,2.3062,216.86,216.8,2.3068]
[1734540790634,2.3,216.87,216.8,2.3068]
[1734540790832,2.3,216.87,216.79,6.942]
[1734540791238,2.3,216.87,216.77,11.23529347]
[1734540791437,2.3064,216.84,216.78,2.3069]
[1734540792243,2.3064,216.84,216.79,2.3069]
[1734540792536,2.3,216.87,216.75,5.42240406]
[1734540792537,2.3,216.87,216.8,11.23529347]
[1734540792735,11.23529347,216.95,216.83,11.23529347]
[1734540792938,2.3056,216.92,216.83,11.23529347]
[1734540793343,2.3056,216.92,216.87,2.3061]
[1734540793547,2.3056,216.92,216.83,11.23529347]
[1734540793736,2.3056,216.92,216.86,2.3061]
[1734540794046,7.762684,216.94,216.83,11.23529347]
[1734540794246,7.762684,216.94,216.85,2.3062]
[1734540794440,2.3056,216.91,216.83,11.23529347]
[1734540795335,7.762684,216.94,216.83,11.23529347]
[1734540795537,2.3057,216.9,216.83,11.23529347]
[1734540795736,7.762684,216.94,216.83,11.23529347]
[1734540795933,7.762684,216.94,216.84,2.3063]
[1734540796135,2.3058,216.9,216.84,2.3063]
[1734540796340,7.762684,216.94,216.84,2.3063]
[1734540796644,2.3058,216.9,216.84,2.3063]
[1734540796842,7.762684,216.94,216.86,2.3062]
[1734540797145,7.762684,216.94,216.83,11.23529347]
[1734540797440,11.23529347,216.92,216.82,2.3066]
[1734540797743,1.4882,216.93,216.8,15.03379347]
[1734540798142,2.3057,216.91,216.86,2.3061]
[1734540798342,1.4882,216.93,216.8,15.03379347]
[1734540798543,1.4882,216.93,216.86,2.3061]
[1734540798743,2.3058,216.9,216.8,15.03379347]
[1734540799445,2.3058,216.9,216.85,2.3062]
[1734540801744,2.3,216.89,216.8,15.03379347]
[1734540802450,5.48397928,216.93,216.8,15.03379347]
[1734540802754,7.78397928,216.93,216.8,15.03379347]
[1734540802943,2.3058,216.9,216.8,15.03379347]
[1734540803547,2.3058,216.89,216.84,2.3063]
[1734540804048,2.3057,216.9,216.85,2.3063]
[1734540804249,2.3057,216.9,216.8,15.03379347]
[1734540804547,2.3057,216.9,216.85,2.3062]
[1734540804747,2.3057,216.9,216.83,11.23529347]
[1734540805347,2.3057,216.9,216.85,2.3063]
[1734540807052,19.01927275,216.93,216.8,15.03379347]
[1734540807551,19.01927275,216.93,216.8,12.73379347]
[1734540808349,2.306,216.88,216.83,9.49825599]
[1734540808549,2.306,216.88,216.83,7.19185599]
[1734540808750,2.306,216.88,216.85,7.19185599]
[1734540809453,2.306,216.88,216.84,9.49815599]
[1734540810050,2.306,216.88,216.85,2.3063]
[1734540810246,7.19185599,216.9,216.85,2.3063]
[1734540810549,2.3059,216.89,216.85,2.3063]
[1734540818058,9.49775599,216.89,216.85,2.3063]
[1734540818257,2.306,216.88,216.84,2.3064]
[1734540818754,7.19185599,216.89,216.82,7.19185599]
[1734540818956,9.49775599,216.89,216.85,2.3063]
[1734540819960,2.3059,216.89,216.85,2.3063]
[1734540822760,2.3,216.94,216.88,7.19185599]
[1734540822955,7.19185599,216.92,216.84,2.3]
[1734540823151,7.19185599,216.9,216.84,7.19185599]
[1734540823359,2.3,216.89,216.82,7.19185599]
[1734540824463,2.306,216.88,216.84,2.3063]
[1734540824664,2.3,216.89,216.82,7.19185599]
[1734540825152,7.19185599,216.88,216.82,7.19185599]
[1734540825356,2.3061,216.87,216.83,2.3065]
[1734540826297,7.19185599,216.88,216.83,2.3065]
[1734540826466,2.3062,216.86,216.83,2.3065]
[1734540826670,2.3062,216.86,216.82,9.49845599]
[1734540827170,2.3063,216.85,216.81,2.3067]
[1734540827661,2.3065,216.84,216.78,7.19185599]
[1734540827963,7.19185599,216.86,216.78,7.19185599]
[1734540828270,7.19185599,216.82,216.74,23.74993193]
[1734540828467,7.19185599,216.82,216.74,4.5333]
[1734540828765,7.19185599,216.82,216.74,3.0008]
[1734540828960,2.3069,216.8,216.75,2.3073]
[1734540829368,7.19185599,216.82,216.74,10.19265599]
[1734540830764,2.3067,216.81,216.76,2.3072]
[1734540831062,7.19185599,216.82,216.76,2.3072]
[1734540831266,7.19185599,216.82,216.76,9.49905599]
[1734540831961,2.3068,216.8,216.76,7.19185599]
[1734540832169,7.19185599,216.8,216.74,7.19185599]
[1734540832867,2.307,216.78,216.73,2.3075]
[1734540833065,4.607,216.78,216.73,2.3075]
[1734540833269,4.607,216.78,216.74,7.19185599]
[1734540834863,5.42832667,216.86,216.76,7.19185599]
[1734540835167,2.3,216.85,216.8,7.19185599]
[1734540835567,2.3065,216.84,216.78,9.49885599]
[1734540836165,2.3065,216.83,216.78,9.49885599]
[1734540837467,2.3065,216.83,216.78,2.307]
[1734540838469,2.3065,216.83,216.74,7.19185599]
[1734540838470,7.19185599,216.83,216.74,7.19185599]
[1734540839371,2.3067,216.81,216.76,7.19185599]
[1734540840571,2.3067,216.81,216.77,2.3071]
[1734540841673,7.19185599,216.83,216.77,2.3071]
[1734540841873,2.3066,216.82,216.78,2.307]
[1734540842177,2.3,216.85,216.76,7.19185599]
[1734540842366,2.3064,216.84,216.78,7.19185599]
[1734540843473,14.92018266,216.86,216.78,7.19185599]
[1734540843673,14.92018266,216.86,216.79,2.3069]
[1734540843869,7.19185599,216.82,216.69,7.10401111]
[1734540844174,7.19185599,216.8,216.72,7.19185599]
[1734540844470,2.3,216.79,216.72,7.19185599]
[1734540845169,7.19185599,216.76,216.69,1.5488]
[1734540845365,2.3077,216.72,216.6,52.74]
[1734540845567,2.3077,216.72,216.57,351.7064256]
[1734540845568,2.3077,216.72,216.65,7.19185599]
[1734540846067,4.6076,216.73,216.67,9.49995599]
[1734540846268,4.6076,216.73,216.69,7.19185599]
[1734540846269,2.3,216.73,216.69,7.19185599]
[1734540846572,2.3,216.73,216.68,2.308]
[1734540846770,4.6075,216.74,216.67,7.19185599]
[1734540847976,2.3,216.74,216.71,2.3078]
[1734540848177,2.3,216.74,216.69,7.19185599]
[1734540848678,9.49185599,216.74,216.66,2.3083]
[1734540848878,9.49185599,216.74,216.67,7.19185599]
[1734540849574,7.19185599,216.72,216.62,1.4594]
[1734540849878,7.19185599,216.7,216.62,8.65125599]
[1734540850076,2.3,216.69,216.62,8.65125599]
[1734540850676,2.3,216.69,216.58,2.3]
[1734540850677,7.19185599,216.68,216.58,6.40480229]
[1734540850977,7.19185599,216.68,216.6,7.19185599]
[1734540851277,7.19185599,216.66,216.6,9.50075599]
[1734540851478,7.19185599,216.66,216.58,11.62854468]
[1734540851777,7.19185599,216.64,216.58,11.62854468]
[1734540851977,9.49185599,216.64,216.58,11.62854468]
[1734540852375,2.3,216.64,216.55,16.3973114]
[1734540852571,2.3,216.64,216.55,10.89480229]
[1734540853078,2.3,216.64,216.58,2.3091]
[1734540853469,2.3087,216.62,216.55,6.7994]
[1734540853676,2.3087,216.62,216.55,4.49]
[1734540854476,2.3087,216.62,216.56,2.3093]
[1734540855483,2.3,216.64,216.55,4.49]
[1734540855783,2.309,216.6,216.54,2.3095]
[1734540855980,2.3,216.59,216.54,2.3095]
[1734540856479,2.3,216.59,216.52,25.61920916]
[1734540856680,4.6091,216.59,216.53,2.3097]
[1734540857079,2.3,216.59,216.52,6.40480229]
[1734540857784,11.26422556,216.58,216.52,6.40480229]
[1734540858085,11.26422556,216.58,216.52,10.83693841]
[1734540858782,2.3098,216.52,216.51,10.83693841]
[1734540859485,4.6097,216.53,216.51,10.83693841]
[1734540859782,2.3,216.53,216.51,10.83693841]
[1734540860083,4.6097,216.53,216.51,10.83693841]
[1734540860779,4.6097,216.53,216.5,30.05134528]
[1734540860983,4.6097,216.53,216.5,10.83693841]
[1734540861184,2.3098,216.52,216.5,10.83693841]
[1734540861481,2.3,216.53,216.5,6.40480229]
[1734540861678,2.3,216.53,216.49,6.40480229]
[1734540862084,2.3,216.53,216.49,10.76926162]
[1734540862780,2.3,216.53,216.49,29.98366849]
[1734540863478,2.3,216.53,216.5,2.31]
[1734540863683,2.3,216.53,216.49,29.98366849]
[1734540864079,2.3,216.53,216.49,8.71490229]
[1734540866785,2.3,216.53,216.49,2.3101]
[1734540867983,2.3,216.53,216.5,4.3620778]
[1734540870490,2.3,216.53,216.5,4.3620778]
[1734540873695,2.3,216.53,216.5,10.76688009]
[1734540874991,9.51482082,216.53,216.5,10.76688009]
[1734540875493,9.51482082,216.53,216.5,4.3620778]
[1734540876188,5.4936524,216.55,216.49,6.40480229]
[1734540876393,2.3,216.54,216.49,6.40480229]
[1734540876595,2.3098,216.53,216.49,8.71490229]
[1734540876794,9.52462082,216.53,216.49,6.40480229]
[1734540876994,9.52462082,216.53,216.48,4.3620778]
[1734540877495,9.52462082,216.53,216.48,32.29148696]
[1734540878394,9.52462082,216.53,216.49,10.76688009]
[1734540879292,9.52462082,216.53,216.5,10.76688009]
[1734540879692,2.3,216.54,216.5,10.76688009]
[1734540879996,2.3,216.55,216.51,4.3620778]
[1734540880495,2.3,216.55,216.52,4.3620778]
[1734540881197,2.3,216.55,216.52,6.40480229]
[1734540881394,4.6095,216.55,216.52,6.40480229]
[1734540882698,11.82432082,216.55,216.52,6.40480229]
[1734540882894,9.51482082,216.55,216.51,17.75501805]
[1734540883198,2.3096,216.54,216.5,2.31]
[1734540883793,2.3098,216.53,216.52,19.27003688]
[1734540884102,9.52462082,216.53,216.52,19.27003688]
[1734540884296,9.52462082,216.53,216.52,14.45923688]
[1734540884599,2.3098,216.52,216.51,62.19220101]
[1734540884899,2.3098,216.52,216.51,6.42352083]
[1734540885497,2.31,216.5,216.49,6.42352083]
[1734540885697,2.31,216.5,216.49,3.32652083]
[1734540885698,11.82482082,216.5,216.49,3.32652083]
[1734540886300,11.82482082,216.5,216.49,7.57881998]
[1734540886899,4.61,216.5,216.49,7.57881998]